bitfinex/quotes_SOLUSD_20251226
["timestamp","ask_amount","ask_price","bid_price","bid_amount"]
[1766713837749,0.69,121.12,121.08,3.54169042]
[1766713837974,0.69,121.12,121.08,64.96473194]
[1766713840960,0.69,121.12,121.08,62.7]
[1766713841161,0.69,121.12,121.08,64.96473194]
[1766713842550,0.69,121.12,121.08,62.7]
[1766713842758,0.69,121.12,121.08,64.96473194]
[1766713844065,0.66,121.11,121.07,62.7]
[1766713844367,0.66,121.11,121.07,64.96473194]
[1766713844669,0.66,121.1,121.06,2.26473194]
[1766713844962,0.66,121.14,121.09,2.26473194]
[1766713845152,0.66,121.13,121.1,10.43767296]
[1766713845664,2.26473194,121.13,121.1,10.43767296]
[1766713845865,0.66,121.12,121.1,10.43767296]
[1766713856068,0.66,121.12,121.09,8.25804098]
[1766713856370,0.66,121.12,121.08,8.25888029]
[1766713856665,0.66,121.11,121.07,8.25939282]
[1766713856870,0.66,121.1,121.07,8.25939282]
[1766713857578,0.66,121.1,121.08,8.25900077]
[1766713858277,0.66,121.12,121.08,10.52373271]
[1766713859763,0.66,121.12,121.08,8.25900077]
[1766713862685,0.66,121.12,121.08,10.52373271]
[1766713865186,0.66,121.12,121.08,2.26473194]
[1766713865777,0.66,121.12,121.09,2.26473194]
[1766713866584,0.66,121.12,121.08,2.26473194]
[1766713867395,0.66,121.12,121.09,8.25832025]
[1766713870574,0.66,121.12,121.09,10.52305219]
[1766713870975,0.66,121.12,121.1,2.26473194]
[1766713871266,0.66,121.14,121.11,2.26473194]
[1766713871467,6.22816163,121.13,121.11,2.26473194]
[1766713871768,0.66,121.13,121.11,2.26473194]
[1766713879003,0.71,121.14,121.11,10.52153331]
[1766713879199,0.71,121.14,121.11,8.25680137]
[1766713879395,0.71,121.14,121.11,10.52153331]
[1766713880511,0.71,121.14,121.11,2.26473194]
[1766713882090,8.25385069,121.16,121.11,2.26473194]
[1766713882091,0.71,121.16,121.13,2.26473194]
[1766713882601,0.71,121.13,121.1,70.95763513]
[1766713882800,0.71,121.13,121.1,10.52236707]
[1766713884908,0.71,121.13,121.1,8.25763513]
[1766713885107,0.71,121.13,121.1,10.52236707]
[1766713885304,0.71,121.13,121.11,2.26473194]
[1766713885490,12.7024049,121.16,121.12,2.26473194]
[1766713885808,0.71,121.14,121.12,2.26473194]
[1766713886387,0.71,121.14,121.12,10.52051328]
[1766713886807,0.1,121.17,121.13,2.26473194]
[1766713887119,2.26473194,121.18,121.13,2.26473194]
[1766713887120,6.27321453,121.18,121.16,2.26473194]
[1766713887320,0.71,121.2,121.17,2.26473194]
[1766713887525,0.71,121.22,121.19,2.26473194]
[1766713887696,0.71,121.22,121.2,2.26473194]
[1766713898120,0.71,121.22,121.18,64.96473194]
[1766713898121,0.71,121.21,121.18,64.96473194]
[1766713898721,0.71,121.21,121.19,2.26473194]
[1766713899254,0.71,121.21,121.2,2.26473194]
[1766713899743,0.71,121.21,121.19,2.26473194]
[1766713899922,0.71,121.21,121.19,3.53266252]
[1766713900953,0.71,121.21,121.17,8.25266676]
[1766713900954,0.71,121.21,121.18,3.53266252]
[1766713909151,0.71,121.21,121.17,70.95266676]
[1766713909449,0.71,121.21,121.18,3.53266252]
[1766713912149,0.71,121.21,121.19,3.53266252]
[1766713912352,0.72,121.21,121.19,3.53266252]
[1766713919752,0.72,121.21,121.17,70.95266676]
[1766713920057,0.72,121.21,121.19,3.53266252]
[1766713921861,0.72,121.21,121.17,70.95266676]
[1766713922066,0.72,121.21,121.18,3.53266252]
[1766713923956,0.72,121.21,121.17,70.95266676]
[1766713924157,0.72,121.21,121.18,3.53266252]
[1766713925462,0.72,121.2,121.17,66.23266252]
[1766713925862,0.72,121.2,121.17,3.53266252]
[1766713928473,8.97032305,121.21,121.17,3.53266252]
[1766713930069,0.72,121.2,121.17,3.53266252]
[1766713931454,0.72,121.2,121.16,81.39115263]
[1766713931676,0.72,121.2,121.17,3.53266252]
[1766713936566,0.72,121.2,121.16,18.69115263]
[1766713936886,0.72,121.2,121.17,3.53266252]
[1766713939488,0.72,121.2,121.16,18.69115263]
[1766713939680,0.72,121.2,121.17,3.53266252]
[1766713940897,0.72,121.2,121.18,3.53266252]
[1766713942798,0.72,121.2,121.15,16.50427715]
[1766713943011,0.71,121.18,121.16,3.53266252]
[1766713943495,0.71,121.18,121.17,3.53266252]
[1766713943666,8.25108201,121.2,121.17,3.53266252]
[1766713943870,0.71,121.18,121.08,44.82582223]
[1766713944086,5.57042516,121.17,121.15,3.53266252]
[1766713944289,0.71,121.18,121.15,3.53266252]
[1766713944496,5.56736084,121.17,121.15,3.53266252]
[1766713944691,0.71,121.17,121.15,3.53266252]
[1766713946101,0.71,121.17,121.14,3.53266252]
[1766713946277,0.71,121.17,121.13,8.25543764]
[1766713946476,0.71,121.17,121.14,3.53266252]
[1766713947398,0.71,121.16,121.12,22.2265211]
[1766713947589,0.71,121.16,121.1,28.89539372]
[1766713947590,0.71,121.15,121.11,11.78933668]
[1766713950894,0.71,121.14,121.1,70.95737477]
[1766713951091,0.71,121.14,121.1,74.49003729]
[1766713952195,0.71,121.14,121.1,8.25737477]
[1766713952389,0.71,121.13,121.09,22.22840198]
[1766713952594,0.71,121.13,121.1,3.53266252]
[1766713954294,0.71,121.13,121.1,11.7900945]
[1766713956409,0.71,121.13,121.1,8.25743198]
[1766713956613,0.71,121.13,121.1,11.7900945]
[1766713957103,0.71,121.13,121.09,22.22838454]
[1766713957310,0.71,121.13,121.09,18.69572202]
[1766713957485,0.71,121.13,121.1,3.53266252]
[1766713958123,0.71,121.13,121.1,66.23266252]
[1766713958491,0.71,121.13,121.1,74.49001607]
[1766713958894,0.71,121.13,121.1,70.95735355]
[1766713959102,0.71,121.13,121.1,74.49001607]
[1766713960403,0.71,121.13,121.1,11.79001607]
[1766713960716,0.71,121.13,121.09,18.69569354]
[1766713961011,11.78761888,121.14,121.09,22.22835606]
[1766713961012,0.71,121.12,121.09,22.22835606]
[1766713961514,18.69333406,121.13,121.05,15.28]
[1766713961698,0.66,121.1,121.06,11.79275748]
[1766713961900,0.66,121.1,121.06,10.52552157]
[1766713962309,2.26542661,121.1,121.05,0.2]
[1766713962624,0.66,121.01,120.98,8.91618362]
[1766713962853,0.66,121.01,120.92,20.67419576]
[1766713962854,0.66,120.98,120.93,0.66]
[1766713963131,2.92542661,120.95,120.91,5.74806182]
[1766713963298,0.66,120.95,120.91,5.74806182]
[1766713963499,2.92542661,120.95,120.91,5.74806182]
[1766713963797,0.66,120.95,120.91,8.01348843]
[1766713964114,0.66,120.98,120.93,10.53414907]
[1766713964314,0.66,120.97,120.93,8.26872246]
[1766713964506,2.92542661,120.97,120.93,8.26872246]
[1766713965302,2.92542661,120.96,120.93,8.98872246]
[1766713965511,2.92542661,120.96,120.92,8.98976725]
[1766713965819,0.66,120.94,120.91,13.35849652]
[1766713966417,0.66,120.94,120.91,14.07849652]
[1766713967205,15.74,120.96,120.92,2.26542661]
[1766713967511,15.08,120.96,120.93,0.72]
[1766713967927,15.08,120.96,120.91,15.62392313]
[1766713968231,15.08,120.96,120.91,99.72045939]
[1766713968232,0.66,120.95,120.91,99.72045939]
[1766713968426,0.66,120.95,120.92,0.72]
[1766713968930,0.66,120.95,120.91,93.14202663]
[1766713969118,0.66,120.95,120.91,9.76549037]
[1766713969317,0.7,120.94,120.91,1.49505567]
[1766713970634,10.53417726,120.94,120.91,1.49505567]
[1766713970853,0.7,120.92,120.91,1.49505567]
[1766713971141,0.7,120.92,120.91,0.77505567]
[1766713971315,0.7,120.92,120.91,0.71505567]
[1766713971725,2.96542661,120.92,120.91,0.71505567]
[1766713972125,18.04542661,120.92,120.91,0.71505567]
[1766713972623,15.78,120.92,120.91,0.71505567]
[1766713973152,15.08,120.92,120.91,0.71505567]
[1766713978455,2.86542661,120.93,120.91,0.71505567]
[1766713978755,17.96542661,120.93,120.91,0.71505567]
[1766713979337,2.26542661,120.92,120.91,0.71505567]
[1766713979855,26.23475778,120.93,120.91,0.71505567]
[1766713980057,17.96542661,120.93,120.91,0.71505567]
[1766713981336,15.1,120.93,120.91,1.43505567]
[1766713981859,15.1,120.93,120.91,0.71505567]
[1766713982963,17.36542661,120.93,120.91,0.71505567]
[1766713984252,17.96542661,120.93,120.91,0.71505567]
[1766713986459,2.86542661,120.95,120.92,0.72]
[1766713988367,2.86542661,120.94,120.91,0.71505567]
[1766713988676,17.96542661,120.93,120.91,0.71505567]
[1766713988859,2.26542661,120.92,120.91,0.71505567]
[1766713989456,17.96542661,120.93,120.91,0.71505567]
[1766713989660,2.26542661,120.92,120.91,1e-08]
[1766713989854,2.26542661,120.92,120.89,5.11273868]
[1766713990786,2.26542661,120.91,120.89,5.11273868]
[1766713991073,23.36989385,120.93,120.89,5.11273868]
[1766713991277,2.26542661,120.91,120.89,5.11273868]
[1766713991761,23.36989385,120.93,120.89,5.11273868]
[1766713991957,2.26542661,120.91,120.89,5.11273868]
[1766713992160,23.36989385,120.93,120.87,0.20551691]
[1766713992161,30.06852618,120.9,120.87,0.20551691]
[1766713992359,2.26542661,120.87,120.85,4.85305421]
[1766713992988,2.26542661,120.87,120.85,5.57305421]
[1766713993275,17.36542661,120.86,120.83,4.87773106]
[1766713993475,2.26542661,120.84,120.83,4.87773106]
[1766713994977,2.26542661,120.84,120.83,4.15773106]
[1766713995177,2.26542661,120.85,120.83,4.82773106]
[1766713996188,15.1,120.86,120.83,4.82773106]
[1766713996397,23.37409462,120.86,120.83,4.15773106]
[1766713996685,23.37409462,120.86,120.81,5.46338497]
[1766713996686,10.54111127,120.84,120.81,5.46338497]
[1766713996859,2.26542661,120.82,120.81,5.46338497]
[1766713997059,2.26542661,120.82,120.8,4.99523487]
[1766713997680,2.26542661,120.81,120.79,0.2]
[1766713997881,2.26542661,120.81,120.78,4.81991173]
[1766713997882,27.80309957,120.8,120.75,0.2]
[1766713998069,2.26542661,120.78,120.75,0.87]
[1766713998267,2.26542661,120.77,120.75,0.87]
[1766713998468,2.26542661,120.77,120.75,0.2]
[1766713998783,25.6465556,120.76,120.73,1e-08]
[1766713998988,8.28112899,120.76,120.71,0.67]
[1766713999281,17.36542661,120.75,120.71,0.67]
[1766713999460,2.26542661,120.74,120.71,0.67]
[1766713999660,2.26542661,120.73,120.71,0.67]
[1766714000182,2.26542661,120.76,120.71,8.28415291]
[1766714000387,2.26542661,120.76,120.72,0.67]
[1766714000695,17.36542661,120.77,120.72,0.67]
[1766714000984,18.7167211,120.79,120.73,0.67]
[1766714001165,17.38542661,120.79,120.73,0.67]
[1766714001365,17.38542661,120.79,120.74,0.67]
[1766714001885,15.12,120.79,120.74,0.67]
[1766714002186,2.26542661,120.78,120.74,0.67]
[1766714002686,2.26542661,120.77,120.74,0.67]
[1766714002881,17.38542661,120.78,120.74,0.67]
[1766714003596,39.40934445,120.81,120.74,0.67]
[1766714003891,15.12,120.79,120.76,0.67]
[1766714004588,17.38542661,120.79,120.76,0.67]
[1766714005176,2.26542661,120.77,120.74,0.67]
[1766714005481,2.26542661,120.78,120.74,0.67]
[1766714005860,25.66426568,120.79,120.74,0.67]
[1766714006676,10.54426568,120.79,120.74,0.67]
[1766714006861,15.12,120.78,120.74,0.67]
[1766714007603,15.12,120.78,120.75,0.67]
[1766714009105,10.54368369,120.8,120.75,8.28152253]
[1766714009415,15.12,120.79,120.76,0.67]
[1766714010509,8.27677536,120.82,120.76,0.67]
[1766714010730,5.49106541,120.81,120.77,0.67]
[1766714011010,17.38542661,120.81,120.77,0.67]
[1766714011590,15.12,120.81,120.77,2.26542661]
[1766714011803,15.12,120.81,120.78,0.67]
[1766714013007,6.91991346,120.86,120.78,0.67]
[1766714013008,6.91991346,120.88,120.81,0.67]
[1766714013180,9.27591686,120.9,120.83,0.67]
[1766714013181,2.26542661,120.87,120.83,0.67]
[1766714013585,2.26542661,120.85,120.83,0.67]
[1766714013799,2.26542661,120.84,120.8,0.67]
[1766714014105,5.41809288,120.84,120.8,0.67]
[1766714014296,5.41809288,120.83,120.8,0.67]
[1766714016797,6.13809288,120.85,120.81,0.67]
[1766714017116,5.41809288,120.84,120.81,0.67]
[1766714017300,6.13809288,120.85,120.81,0.67]
[1766714017898,6.13809288,120.83,120.79,0.67]
[1766714018105,6.13809288,120.82,120.77,0.67]
[1766714018313,6.13809288,120.82,120.77,6.08809288]
[1766714018706,6.13809288,120.82,120.78,0.67]
[1766714019019,5.41809288,120.81,120.78,0.67]
[1766714019924,6.13809288,120.82,120.78,0.67]
[1766714020933,14.41509617,120.82,120.78,0.67]
[1766714021720,8.99685906,120.82,120.78,0.67]
[1766714021923,17.80376008,120.82,120.78,0.67]
[1766714022144,9.52690102,120.82,120.78,0.67]
[1766714022328,17.80372353,120.82,120.78,0.67]
[1766714022504,8.99682251,120.82,120.78,0.67]
[1766714022705,17.80372353,120.82,120.78,0.67]
[1766714023027,9.52690102,120.83,120.79,0.67]
[1766714023209,34.36457398,120.84,120.8,0.67]
[1766714023410,35.08457398,120.84,120.8,9.47690102]
[1766714024221,35.08457398,120.84,120.8,0.67]
[1766714024722,9.49690102,120.81,120.76,8.98063947]
[1766714024923,9.49690102,120.81,120.76,17.78754049]
[1766714025330,9.49690102,120.81,120.77,0.7]
[1766714026129,8.80690102,120.8,120.77,0.7]
[1766714026913,17.08413296,120.82,120.78,0.7]
[1766714027129,17.77413296,120.82,120.78,0.7]
[1766714028628,8.80690102,120.81,120.78,0.7]
[1766714028822,9.49690102,120.81,120.77,8.28001038]
[1766714029013,9.49690102,120.81,120.77,8.97001038]
[1766714029217,8.80690102,120.8,120.77,8.97001038]
[1766714030235,8.80690102,120.8,120.77,0.69]
[1766714031650,25.55767296,120.84,120.8,0.69]
[1766714031651,8.80690102,120.84,120.8,0.69]
[1766714031821,9.49690102,120.85,120.81,0.69]
[1766714032414,8.80690102,120.84,120.81,0.69]
[1766714032615,17.08235959,120.84,120.81,0.69]
[1766714034427,17.77235959,120.84,120.81,0.69]
[1766714035630,0.69,120.84,120.81,0.69]
[1766714035837,17.08160162,120.86,120.82,9.49690102]
[1766714036030,11.8288222,120.86,120.82,4.2441216]
[1766714036228,5.54683262,120.85,120.82,4.2441216]
[1766714036838,12.5188222,120.86,120.82,0.69]
[1766714037043,5.54674056,120.85,120.82,0.69]
[1766714038155,4.2441216,120.84,120.77,20.69964553]
[1766714038442,3.5541216,120.83,120.79,0.69]
[1766714038822,3.5541216,120.83,120.79,8.96820125]
[1766714039021,22.95670589,120.85,120.81,0.69]
[1766714039221,5.55196406,120.84,120.81,0.69]
[1766714040251,6.24196406,120.84,120.81,0.69]
[1766714040425,0.69,120.84,120.81,0.69]
[1766714041338,8.80247818,120.84,120.81,0.69]
[1766714041845,24.08491133,120.85,120.81,0.69]
[1766714042148,14.35599559,120.84,120.81,0.69]
[1766714042455,19.401421,120.87,120.82,0.69]
[1766714042630,8.80247818,120.88,120.83,8.80247818]
[1766714042954,8.80247818,120.89,120.84,0.69]
[1766714043653,8.2710746,120.91,120.85,8.80247818]
[1766714043945,29.47157024,120.9,120.86,0.69]
[1766714044150,24.61247818,120.91,120.87,0.69]
[1766714044331,23.92247818,120.91,120.87,8.27310477]
[1766714044534,23.92247818,120.91,120.88,0.69]
[1766714045454,23.92247818,120.92,120.88,0.69]
[1766714047130,23.92247818,120.92,120.89,0.69]
[1766714048059,8.80247818,120.94,120.89,0.69]
[1766714048363,24.02247818,120.95,120.9,0.69]
[1766714049065,0.1,120.95,120.92,0.69]
[1766714049356,0.1,120.95,120.91,0.69]
[1766714049532,8.90247818,120.95,120.92,0.69]
[1766714049945,0.1,120.95,120.92,0.69]
[1766714050362,0.1,120.95,120.92,8.95991204]
[1766714051038,0.1,120.95,120.92,0.69]
[1766714053568,0.1,120.95,120.92,8.95988074]
[1766714056163,0.1,120.95,120.91,8.2706145]
[1766714056372,0.1,120.95,120.92,0.69]
[1766714059162,8.80247818,120.94,120.92,0.69]
[1766714059465,8.80247818,120.94,120.91,0.69]
[1766714059843,9.58247818,120.95,120.91,0.69]
[1766714060041,9.58247818,120.95,120.91,8.96056037]
[1766714060657,8.80247818,120.92,120.86,62.7]
[1766714060960,8.80247818,120.92,120.87,0.69]
[1766714060961,8.80247818,120.89,120.87,0.69]
[1766714062463,8.80247818,120.88,120.86,0.69]
[1766714062875,8.80247818,120.89,120.86,0.69]
[1766714064570,8.80247818,120.89,120.87,0.69]
[1766714066170,9.48247818,120.89,120.85,0.69]
[1766714066667,8.80247818,120.88,120.85,63.39]
[1766714067346,8.80247818,120.88,120.86,0.69]
[1766714070576,9.48247818,120.88,120.85,70.9743061]
[1766714070752,9.48247818,120.88,120.85,71.6643061]
[1766714071170,9.48247818,120.88,120.85,8.9643061]
[1766714071356,8.80247818,120.88,120.85,8.9643061]
[1766714071556,8.80247818,120.86,120.83,71.66596223]
[1766714071755,8.80247818,120.86,120.83,8.96596223]
[1766714072649,23.90247818,120.87,120.84,0.69]
[1766714073056,8.80247818,120.85,120.82,0.69]
[1766714073253,8.80247818,120.84,120.82,0.69]
[1766714073870,8.95431304,120.86,120.82,0.69]
[1766714074050,8.80247818,120.84,120.82,0.69]
[1766714075356,8.80247818,120.83,120.79,18.71628361]
[1766714075676,8.80247818,120.81,120.78,8.96911196]
[1766714075850,23.90247818,120.81,120.78,8.96911196]
[1766714079487,8.80247818,120.83,120.79,0.69]
[1766714079658,23.92247818,120.83,120.79,0.69]
[1766714079860,8.80247818,120.81,120.79,0.69]
[1766714080968,9.48247818,120.81,120.77,8.28020203]
[1766714081157,9.48247818,120.81,120.77,70.98020203]
[1766714081357,9.48247818,120.81,120.78,0.69]
[1766714081963,4.23719092,120.81,120.78,0.69]
[1766714082169,3.55719092,120.81,120.78,0.69]
[1766714083186,3.55719092,120.8,120.78,0.69]
[1766714083490,3.55719092,120.79,120.78,63.39]
[1766714083990,2.27708703,120.79,120.76,8.95069571]
[1766714084169,2.27708703,120.79,120.77,0.67]
[1766714087368,2.27708703,120.79,120.76,63.37]
[1766714088588,2.27708703,120.79,120.76,0.67]
[1766714089295,2.27708703,120.78,120.76,0.67]
[1766714091671,15.12,120.8,120.76,8.95074197]
[1766714091869,2.27708703,120.79,120.77,0.67]
[1766714092998,0.67,120.77,120.73,0.67]
[1766714093309,2.27708703,120.75,120.74,10.43767296]
[1766714093894,2.27708703,120.74,120.71,0.67]
[1766714094089,2.27708703,120.72,120.71,0.67]
[1766714094773,15.12,120.76,120.71,8.95431778]
[1766714094974,2.27708703,120.74,120.71,8.95431778]
[1766714096179,2.27708703,120.72,120.71,0.67]
[1766714096377,2.27708703,120.73,120.71,0.67]
[1766714096573,0.67,120.78,120.72,0.67]
[1766714096773,0.67,120.76,120.72,0.67]
[1766714097002,17.39708703,120.75,120.72,8.95311252]
[1766714098887,1.91448555,120.8,120.73,0.67]
[1766714099088,2.27708703,120.79,120.74,0.67]
[1766714099293,17.39708703,120.79,120.74,0.67]
[1766714099519,17.39708703,120.79,120.75,0.67]
[1766714100014,15.12,120.79,120.75,8.95151257]
[1766714100317,18.06708703,120.79,120.75,8.95151257]
[1766714101904,6.0919721,120.79,120.75,8.95151257]
[1766714102110,21.2119721,120.79,120.75,8.95151257]
[1766714102914,21.2119721,120.79,120.71,0.67]
[1766714102915,0.67,120.75,120.71,0.67]
[1766714103104,5.4219721,120.74,120.71,0.67]
[1766714106622,6.0919721,120.74,120.7,9.15445151]
[1766714106796,0.67,120.73,120.7,0.2]
[1766714107200,0.67,120.73,120.7,8.48495349]
[1766714107399,6.0919721,120.73,120.7,8.48495349]
[1766714107731,5.4219721,120.72,120.7,0.2]
[1766714108337,5.4219721,120.71,120.7,0.2]
[1766714108728,20.5419721,120.72,120.7,0.2]
[1766714109030,15.12,120.72,120.7,0.2]
[1766714110829,20.70118936,120.77,120.7,8.48499215]
[1766714111131,21.2119721,120.76,120.72,0.67]
[1766714111642,5.4219721,120.75,120.72,0.67]
[1766714113957,5.4219721,120.73,120.7,0.2]
[1766714114127,5.4219721,120.72,120.7,0.2]
[1766714114327,6.1119721,120.72,120.7,0.2]
[1766714114638,6.1119721,120.72,120.67,0.67]
[1766714114639,21.0619721,120.71,120.67,0.67]
[1766714115031,21.0619721,120.71,120.67,8.95699479]
[1766714115331,15.12,120.71,120.69,0.67]
[1766714115748,8.28088771,120.76,120.71,0.67]
[1766714116052,15.12,120.76,120.73,0.67]
[1766714116244,20.5419721,120.76,120.73,0.67]
[1766714117237,8.80042894,120.77,120.73,8.95279169]
[1766714117238,5.9419721,120.77,120.73,8.95279169]
[1766714117434,5.4219721,120.77,120.73,8.28279169]
[1766714117644,20.5419721,120.77,120.74,0.67]
[1766714120988,29.34219649,120.77,120.74,0.67]
[1766714121655,5.4219721,120.76,120.74,0.67]
[1766714121956,2.27823547,120.76,120.74,0.67]
[1766714124384,2.79823547,120.75,120.71,0.67]
[1766714124547,2.27823547,120.73,120.69,8.28528758]
[1766714124751,2.27823547,120.73,120.7,0.67]
[1766714127381,2.27823547,120.72,120.69,0.67]
[1766714127679,2.27823547,120.71,120.69,0.67]
[1766714128366,17.39823547,120.71,120.68,0.67]
[1766714129082,17.91823547,120.71,120.67,8.28686991]
[1766714129376,17.91823547,120.71,120.68,0.67]
[1766714130166,17.39823547,120.71,120.68,8.95620131]
[1766714133866,15.12,120.72,120.69,0.67]
[1766714137094,15.12,120.72,120.7,0.67]
[1766714137409,10.56120717,120.73,120.7,0.67]
[1766714137410,25.67926367,120.76,120.71,0.67]
[1766714137576,5.57082874,120.75,120.71,0.67]
[1766714137769,7.84906421,120.75,120.71,0.67]
[1766714137969,5.57082874,120.74,120.71,0.67]
[1766714138570,2.27823547,120.75,120.71,0.67]
[1766714139782,2.27823547,120.75,120.71,8.95409185]
[1766714141394,2.27823547,120.75,120.71,8.28409185]
[1766714141585,2.27823547,120.75,120.71,8.98409185]
[1766714141886,2.27823547,120.74,120.71,0.7]
[1766714142088,2.27823547,120.75,120.71,0.7]
[1766714142601,2.27823547,120.74,120.71,0.7]
[1766714144005,3.56087194,120.74,120.71,0.7]
[1766714144302,3.56087194,120.73,120.7,62.7]
[1766714144599,4.08087194,120.73,120.69,82.11319078]
[1766714144804,4.08087194,120.73,120.7,0.69]
[1766714146581,4.08087194,120.72,120.69,10.43767296]
[1766714146780,3.56087194,120.71,120.69,10.43767296]
[1766714147194,4.08087194,120.71,120.69,10.43767296]
[1766714147810,0.52,120.71,120.69,10.43767296]
[1766714148009,15.64,120.72,120.67,0.69]
[1766714148297,3.56087194,120.71,120.67,0.69]
[1766714149601,3.56087194,120.71,120.67,8.28706389]
[1766714149908,3.56087194,120.71,120.68,0.69]
[1766714150279,19.20087194,120.72,120.68,0.69]
[1766714150609,18.68087194,120.72,120.67,11.84793583]
[1766714150786,0.52,120.71,120.67,12.53793583]
[1766714150984,4.08087194,120.71,120.67,8.97706389]
[1766714151295,3.56087194,120.7,120.66,13.66833328]
[1766714151485,3.56087194,120.7,120.67,0.69]
[1766714151885,3.56087194,120.7,120.67,8.97705481]
[1766714152100,3.56087194,120.7,120.67,0.69]
[1766714152799,12.36519491,120.71,120.67,8.97702952]
[1766714155211,12.36519491,120.71,120.67,0.69]
[1766714155510,4.08087194,120.7,120.67,0.69]
[1766714155718,0.52,120.69,120.66,5.38088878]
[1766714156599,0.52,120.69,120.66,6.07088878]
[1766714157406,0.52,120.69,120.66,5.38088878]
[1766714157611,4.08087194,120.68,120.66,5.38088878]
[1766714158500,12.36661592,120.69,120.66,5.38088878]
[1766714158700,27.50661592,120.69,120.66,5.38088878]
[1766714158900,6.91991346,120.73,120.67,0.69]
[1766714159206,9.65245389,120.72,120.68,0.69]
[1766714159410,9.65245389,120.72,120.68,4.25087194]
[1766714159411,5.57158195,120.71,120.68,4.25087194]
[1766714159605,23.94364967,120.72,120.68,4.25087194]
[1766714159818,27.50452161,120.72,120.68,0.69]
[1766714160114,3.56087194,120.71,120.68,0.69]
[1766714160302,23.94364967,120.72,120.68,0.69]
[1766714160495,3.56087194,120.71,120.68,0.69]
[1766714161919,27.50452161,120.72,120.68,8.97629975]
[1766714162120,27.50452161,120.72,120.68,0.69]
[1766714162528,23.94364967,120.72,120.68,0.69]
[1766714162828,27.50452161,120.72,120.68,0.69]
[1766714164025,15.66,120.72,120.69,0.69]
[1766714164226,27.50450767,120.72,120.69,0.69]
[1766714164428,5.57062999,120.71,120.69,0.69]
[1766714164720,0.52,120.74,120.69,3.56087194]
[1766714164927,4.08087194,120.74,120.7,0.69]
[1766714165337,26.98252475,120.75,120.7,11.84587608]
[1766714165500,5.57061421,120.74,120.71,0.69]
[1766714168139,27.50252475,120.75,120.71,0.69]
[1766714168313,5.57287866,120.74,120.71,0.69]
[1766714171326,27.50252475,120.75,120.71,0.69]
[1766714171632,5.57478574,120.74,120.71,0.69]
[1766714171999,5.57478574,120.74,120.71,8.2842469]
[1766714172203,5.57478574,120.74,120.72,0.69]
[1766714172819,19.22087194,120.75,120.72,0.69]
[1766714173024,19.20087194,120.75,120.72,0.69]
[1766714173527,4.08087194,120.75,120.72,0.69]
[1766714173834,15.12,120.75,120.73,0.67]
[1766714174006,15.12,120.75,120.72,8.28344872]
[1766714174207,15.12,120.75,120.73,0.67]
[1766714174531,18.68087194,120.77,120.73,0.67]
[1766714175107,15.12,120.77,120.72,28.99252758]
[1766714175310,6.96582511,120.81,120.76,3.56087194]
[1766714175628,5.57019745,120.8,120.78,0.67]
[1766714175830,11.83793768,120.82,120.78,0.67]
[1766714176133,9.13079093,120.81,120.77,0.67]
[1766714176437,5.56991899,120.8,120.77,0.67]
[1766714176731,0.52,120.83,120.79,0.67]
[1766714176931,4.08087194,120.83,120.8,0.67]
[1766714177105,3.56087194,120.83,120.8,0.67]
[1766714177533,11.83725303,120.83,120.8,0.67]
[1766714177728,3.56087194,120.81,120.78,0.67]
[1766714178735,3.56087194,120.8,120.78,0.67]
[1766714179811,15.64,120.82,120.74,0.67]
[1766714179812,0.52,120.78,120.74,0.67]
[1766714180134,3.56087194,120.77,120.74,0.67]
[1766714181214,3.56087194,120.76,120.74,0.67]
[1766714181741,3.56087194,120.77,120.74,0.67]
[1766714187840,3.56087194,120.75,120.72,0.67]
[1766714188044,3.56087194,120.74,120.72,0.67]